[Event "1st Cyprus Chess Tournament 2019"]
[Site "Larnaca"]
[Date "2019.10.27"]
[Round "3.7"]
[White "Ulybin, Mikhail"]
[Black "Isaakidis, Alexandros"]
[Result "1-0"]
[ECO "A58"]
[WhiteElo "2455"]
[BlackElo "2219"]
[Annotator "ChessBase"]
[PlyCount "81"]
[EventDate "2019.10.25"]
[EventType "swiss"]
[EventCountry "CYP"]
[SourceTitle "playchess.com"]
[Source "ChessBase"]
[SourceQuality "1"]
[TimeControl "5400+30"]

1. d4 {[%emt 0:01:10]} Nf6 {[%emt 0:00:00]} 2. c4 {[%emt 0:01:08]} c5 {[%emt 0:00:07]} 3. d5 {[%emt 0:01:34]} b5 {[%emt 0:00:09]} 4. cxb5 {[%emt 0:00:54]} a6 {[%emt 0:00:07]} 5. bxa6 {[%emt 0:02:58]} g6 {[%emt 0:00:08]} 6. Nc3 {[%emt 0:01:26]} Bg7 {[%emt 0:00:14]} 7. e4 {[%emt 0:04:00]} O-O {[%emt 0:00:15]} 8. Nf3 {[%emt 0:06:44]} Qa5 {[%emt 0:00:36]} 9. a7 {[%emt 0:10:15]} Nxe4 {[%emt 0:02:24]} 10. Bd2 {[%emt 0:44:25]} Nxd2 {[%emt 0:02:29]} 11. Nxd2 {[%emt 0:00:24]} Bxc3 {[%emt 0:06:01]} 12. axb8=Q {[%emt 0:07:17]} Bxd2+ {[%emt 0:00:29]} 13. Qxd2 {[%emt 0:00:10]} Qxd2+ {[%emt 0:00:12]} 14. Kxd2 {[%emt 0:00:05]} Rxb8 {[%emt 0:00:09]} 15. Kc3 {[%emt 0:00:33]} Rb6 {[%emt 0:20:39]} 16. a4 {[%emt 0:02:19]} Ba6 {[%emt 0:01:20]} 17. a5 {[%emt 0:01:46]} Rf6 {[%emt 0:01:06]} 18. Bxa6 {[%emt 0:04:42]} Rxa6 {[%emt 0:00:07]} 19. Ra4 {[%emt 0:01:53]} Rb8 {[%emt 0:05:44]} 20. Rha1 {[%emt 0:01:32]} e6 {[%emt 0:22:53]} 21. b4 {[%emt 0:03:59]} cxb4+ {[%emt 0:02:26]} 22. Rxb4 {[%emt 0:00:09]} Rc8+ {[%emt 0:00:32]} 23. Rc4 {[%emt 0:01:11]} Rca8 {[%emt 0:00:25]} 24. Rc5 {[%emt 0:00:39]} Kf8 {[%emt 0:01:50]} 25. Kb4 {[%emt 0:00:21]} Ke7 {[%emt 0:00:21]} 26. Ra3 {[%emt 0:00:49]} Kd6 {[%emt 0:00:33]} 27. Rf3 {[%emt 0:00:29]} R6a7 {[%emt 0:13:10]} 28. Rb5 {[%emt 0:00:27]} Rc7 {[%emt 0:03:44]} 29. Rxf7 {[%emt 0:00:27]} Rc1 {[%emt 0:00:09]} 30. Rb6+ {[%emt 0:00:35]} Ke5 {[%emt 0:00:21]} 31. dxe6 {[%emt 0:00:31]} dxe6 {[%emt 0:01:22]} 32. a6 {[%emt 0:00:32]} Rd8 {[%emt 0:09:02]} 33. a7 {[%emt 0:00:26]} Rd4+ {[%emt 0:02:33]} 34. Kb5 {[%emt 0:00:25]} Ra1 {[%emt 0:02:24]} 35. f4+ {[%emt 0:00:20]} Ke4 {[%emt 0:00:10]} 36. Rxe6+ {[%emt 0:00:36]} Kd5 {[%emt 0:01:00]} 37. Re5+ {[%emt 0:00:36]} Kd6 {[%emt 0:00:00]} 38. Rf6+ {[%emt 0:00:34]} Kd7 {[%emt 0:00:01]} 39. Ra6 {[%emt 0:00:34]} Rdd1 {[%emt 0:03:29]} 40. Rxa1 {[%emt 0:00:28]} Rxa1 {[%emt 0:00:02]} 41. Kb6 {[%emt 0:00:17]} 1-0

[Event "1st Cyprus Chess Tournament 2019"]
[Site "Larnaca"]
[Date "2019.10.27"]
[Round "3.8"]
[White "Damianou, Ioannis"]
[Black "Arkell, Keith C"]
[Result "0-1"]
[ECO "A10"]
[WhiteElo "2118"]
[BlackElo "2447"]
[Annotator "NA"]
[PlyCount "126"]
[EventDate "2019.10.25"]
[EventType "swiss"]
[EventCountry "CYP"]
[SourceTitle "playchess.com"]
[Source "ChessBase"]
[SourceQuality "1"]
[TimeControl "5400+30"]

1. c4 {[%emt 0:00:00]} b6 {[%emt 0:00:57]} 2. Nc3 {[%emt 0:00:07]} Bb7 {[%emt 0:00:06]} 3. e4 {[%emt 0:00:29]} e6 {[%emt 0:00:04]} 4. g3 {[%emt 0:00:14]} Bb4 {[%emt 0:00:15]} (4... g6 5. Bg2 Bg7 6. Nge2 c5 7. d4 cxd4 8. Nxd4 a6 9. O-O Ne7 10. Be3 O-O 11. Qd2 Nbc6 12. Rfd1 {1-0 (27) Grandelius,N (2647)-Hambleton,A (2501) chess.com INT 2018}) 5. Bg2 {[%emt 0:00:41]} Bxc3 {[%emt 0:00:06]} 6. bxc3 {[%emt 0:01:03] A10: English Opening: Unusual Replies for Black} f5 {[%emt 0:01:15]} 7. d3 {[%emt 0:04:36]} fxe4 {[%emt 0:00:54]} 8. Qg4 $146 {[%emt 0:07:02]} ({Predecessor:} 8. Nh3 Nf6 9. Ng5 O-O 10. O-O h6 11. Nxe4 Nxe4 12. dxe4 {0-1 (52) Jennings,R (1879)-Coote,T (2132) London 2016}) 8... Qe7 {[%emt 0:09:55]} 9. dxe4 {[%emt 0:10:28]} Nf6 {[%emt 0:00:13]} 10. Qe2 {[%emt 0:01:12]} e5 {[%emt 0:00:09]} 11. Nh3 {[%emt 0:02:40]} Na6 {[%emt 0:00:30]} 12. O-O {[%emt 0:00:49]} Nc5 {[%emt 0:00:05]} 13. f4 {[%emt 0:11:59]} d6 {[%emt 0:05:21]} 14. fxe5 {[%emt 0:01:22]} dxe5 {[%emt 0:00:05]} 15. Bg5 {[%emt 0:02:03]} O-O {[%emt 0:00:07]} 16. Nf2 {[%emt 0:01:50]} h6 {[%emt 0:02:13]} 17. Bxf6 {[%emt 0:04:32]} Rxf6 {[%emt 0:00:06]} 18. Ng4 {[%emt 0:00:11]} Rxf1+ {[%emt 0:05:28]} 19. Rxf1 {[%emt 0:00:08]} Rf8 {[%emt 0:00:06]} 20. Rf5 {[%emt 0:00:56]} Bc8 {[%emt 0:03:00]} 21. Rxf8+ {[%emt 0:03:42]} Kxf8 {[%emt 0:00:40]} 22. Ne3 {[%emt 0:02:31]} Qg5 {[%emt 0:00:37]} 23. Qf3+ {[%emt 0:05:52]} Kg8 {[%emt 0:00:15]} 24. h4 {[%emt 0:00:21]} Qd8 {[%emt 0:00:37]} (24... Qg6 $17 25. Nf5 Qf6) 25. Qh5 {[%emt 0:01:32]} Nd7 {[%emt 0:16:42]} 26. Qd1 {[%emt 0:04:22]} Qf8 {[%emt 0:02:33]} 27. Bh3 {[%emt 0:02:19]} Nf6 {[%emt 0:02:52]} 28. Bxc8 $15 {[%emt 0:00:19]} Qxc8 {[%emt 0:00:05]} 29. Nd5 {[%emt 0:00:39]} Kf7 {[%emt 0:03:06]} 30. Nxf6 {[%emt 0:04:27]} Kxf6 {[%emt 0:00:04]} 31. c5 {[%emt 0:02:53]} Qe6 {[%emt 0:04:35]} 32. cxb6 {[%emt 0:01:10]} axb6 {[%emt 0:00:15]} 33. Qd8+ {[%emt 0:05:41]} Qe7 {[%emt 0:00:05]} 34. Qc8 {[%emt 0:00:50]} Qd6 {[%emt 0:04:55]} 35. Kg2 {[%emt 0:02:08]} Ke7 {[%emt 0:03:09]} 36. c4 {[%emt 0:01:01]} Qc6 {[%emt 0:02:03]} 37. Qf5 {[%emt 0:01:35]} Qd6 {[%emt 0:11:59]} 38. Qc8 {[%emt 0:00:43]} h5 {[%emt 0:01:53]} 39. Qg8 {[%emt 0:01:02]} g6 {[%emt 0:01:13]} 40. Qg7+ {[%emt 0:01:51]} Kd8 {[%emt 0:00:11]} 41. Qg8+ {[%emt 0:01:29]} Kd7 {[%emt 0:00:21]} 42. Qd5 {[%emt 0:01:30]} c6 {[%emt 0:03:00]} 43. Qf7+ {[%emt 0:00:25]} Kc8 {[%emt 0:00:07]} 44. Qa7 {[%emt 0:00:34]} Qd2+ {[%emt 0:00:32]} 45. Kf3 {[%emt 0:00:51]} Qd3+ {[%emt 0:03:14]} 46. Kf2 {[%emt 0:00:06]} Qxc4 {[%emt 0:05:04]} 47. Qa8+ {[%emt 0:00:51]} Kd7 {[%emt 0:00:07]} 48. Qb7+ {[%emt 0:00:49]} Ke8 {[%emt 0:00:06]} 49. Qb8+ {[%emt 0:00:46]} Kf7 {[%emt 0:00:01]} 50. Qxe5 {[%emt 0:00:19]} Qxa2+ {[%emt 0:00:06]} 51. Kf3 {[%emt 0:00:40]} Qa3+ {[%emt 0:00:30]} 52. Ke2 {[%emt 0:00:28]} Qe7 {[%emt 0:00:27]} 53. Qf4+ {[%emt 0:00:05]} Kg7 {[%emt 0:00:07]} 54. Kd3 {[%emt 0:00:23]} b5 {[%emt 0:00:11]} 55. Qb8 {[%emt 0:00:49]} b4 {[%emt 0:02:07]} 56. e5 {[%emt 0:01:00]} Kf7 {[%emt 0:02:34]} 57. Qh8 {[%emt 0:01:26]} Qe6 {[%emt 0:03:03]} 58. Qh7+ {[%emt 0:00:28]} Ke8 {[%emt 0:00:09]} 59. Qh8+ {[%emt 0:00:06]} Kd7 {[%emt 0:00:06]} 60. Qg7+ {[%emt 0:00:07]} Kc8 {[%emt 0:00:07]} 61. Qf8+ {[%emt 0:00:20]} Kc7 {[%emt 0:00:02]} 62. Qxb4 {[%emt 0:00:55]} Qxe5 {[%emt 0:00:01]} 63. Kd2 {[%emt 0:00:19]} Qd6+ {[%emt 0:00:09]} 0-1

[Event "1st Cyprus Chess Tournament 2019"]
[Site "Larnaca"]
[Date "2019.10.27"]
[Round "3.9"]
[White "Kayumov, Dmitry D"]
[Black "Velickovski-Nejkovic, Maja"]
[Result "0-1"]
[ECO "C41"]
[WhiteElo "2402"]
[BlackElo "2128"]
[Annotator "NA"]
[PlyCount "142"]
[EventDate "2019.10.25"]
[EventType "swiss"]
[EventCountry "CYP"]
[SourceTitle "playchess.com"]
[Source "ChessBase"]
[SourceQuality "1"]
[TimeControl "5400+30"]

1. e4 {[%emt 0:00:00]} d6 {[%emt 0:00:00]} 2. d4 {[%emt 0:00:00]} Nf6 {[%emt 0:00:00]} 3. Nc3 {[%emt 0:00:00]} e5 {[%emt 0:00:00]} 4. Nf3 {[%emt 0:00:31]} Nbd7 {[%emt 0:00:00]} 5. g3 {[%emt 0:00:45]} Be7 {[%emt 0:00:31]} 6. Bg2 {[%emt 0:00:10]} O-O {[%emt 0:00:19]} 7. O-O {[%emt 0:00:11]} c6 {[%emt 0:00:08]} 8. a4 {[%emt 0:00:21]} Qc7 {[%emt 0:00:34] C41: Philidor Defence} (8... b6 9. Be3 a6 10. Nd2 Bb7 11. f4 b5 12. h3 b4 13. Ne2 a5 14. g4 Ba6 15. Rf2 h6 16. Ng3 Re8 {½-½ (45) Onischuk,V (2637)-Kunin,V (2527) Riga 2019}) 9. Re1 {[%emt 0:00:55]} Rb8 {[%emt 0:00:36]} 10. Qd3 $146 {[%emt 0:02:39]} ({Predecessor:} 10. h3 Re8 11. Be3 b6 12. Nh4 a5 {0-1 (34) Petrova,K (2197)-Wasserbauer,R (1978) Czechia 2010}) 10... a6 {[%emt 0:07:52]} 11. a5 {[%emt 0:00:35]} c5 {[%emt 0:00:26]} 12. dxc5 {[%emt 0:02:08]} Nxc5 {[%emt 0:00:25]} 13. Qe3 {[%emt 0:01:20]} b5 {[%emt 0:02:49]} 14. axb6 {[%emt 0:00:25]} Rxb6 {[%emt 0:00:31]} 15. b3 {[%emt 0:01:23]} Rc6 {[%emt 0:05:42]} 16. Bd2 {[%emt 0:05:49]} Be6 {[%emt 0:06:25]} 17. h3 {[%emt 0:06:34]} (17. Nh4 $14) 17... Qc8 {[%emt 0:03:27]} 18. Kh2 {[%emt 0:01:49]} h6 {[%emt 0:01:15]} 19. Nh4 {[%emt 0:01:33]} Re8 {[%emt 0:09:02]} 20. Nd5 $1 {[%emt 0:05:38]} Bxd5 {[%emt 0:01:11]} 21. exd5 {[%emt 0:00:11]} Rc7 {[%emt 0:00:18]} 22. Ba5 {[%emt 0:00:25]} Rb7 {[%emt 0:02:10]} 23. b4 {[%emt 0:01:21]} Ncd7 {[%emt 0:00:21]} 24. Qd3 {[%emt 0:00:43]} Nb8 {[%emt 0:03:59]} (24... e4 $1 $11 25. Qe2 (25. Qxa6 Nb8 $15) 25... Bf8) 25. Nf5 {[%emt 0:03:00]} Bf8 {[%emt 0:01:00]} 26. g4 {[%emt 0:02:08]} g6 {[%emt 0:00:34]} 27. Ng3 {[%emt 0:00:55]} Nfd7 {[%emt 0:01:39]} (27... Be7 $16) 28. Ra3 {[%emt 0:05:31]} Nb6 {[%emt 0:07:39]} (28... Nf6 $16 {was called for.} 29. Kg1 Be7) 29. Rc3 {[%emt 0:01:41]} Qd7 {[%emt 0:00:07]} 30. Rc6 {[%emt 0:01:53]} Nc8 {[%emt 0:00:38]} 31. Be4 {[%emt 0:02:49]} Ne7 {[%emt 0:02:49]} (31... Bg7 $16 {was necessary.}) 32. Rc3 {[%emt 0:03:41]} Qb5 {[%emt 0:00:38]} 33. Qf3 {[%emt 0:01:32]} Rd7 {[%emt 0:01:54]} 34. Rg1 {[%emt 0:00:56]} Nc8 $18 {[%emt 0:02:55]} (34... Bg7 $16 {is a better chance.} 35. Ra3 Rf8) 35. Nh5 {[%emt 0:03:49]} Bg7 {[%emt 0:01:25]} 36. Nf6+ {[%emt 0:01:15]} Bxf6 {[%emt 0:00:09]} 37. Qxf6 {[%emt 0:00:10]} Ne7 {[%emt 0:00:08]} 38. Qf3 {[%emt 0:03:34]} Ra7 {[%emt 0:01:33]} 39. Qe3 {[%emt 0:05:21]} Rb7 {[%emt 0:01:48]} 40. Qxh6 {[%emt 0:06:09]} Nxd5 {[%emt 0:01:21]} 41. Rd3 {[%emt 0:01:10]} Nf4 {[%emt 0:00:35]} 42. Rxd6 {[%emt 0:04:45]} Rd7 {[%emt 0:00:56]} 43. Rxd7 {[%emt 0:04:09]} Nxd7 {[%emt 0:00:11]} 44. Qh4 {[%emt 0:00:42]} Kg7 {[%emt 0:04:03]} 45. Bd3 {[%emt 0:02:00]} Qc6 {[%emt 0:01:40]} 46. Qg3 {[%emt 0:00:29]} g5 {[%emt 0:00:24]} 47. Re1 {[%emt 0:04:10]} Qc3 {[%emt 0:04:53]} 48. Qe3 {[%emt 0:02:51]} Nf6 {[%emt 0:00:45]} 49. Bf1 {[%emt 0:00:32]} Qc6 {[%emt 0:00:31]} 50. Qc5 {[%emt 0:04:27]} Qf3 {[%emt 0:01:02]} 51. b5 {[%emt 0:05:35]} Nxg4+ {[%emt 0:00:38]} 52. Kg1 {[%emt 0:00:15]} Nxh3+ {[%emt 0:00:51]} 53. Bxh3 {[%emt 0:00:08]} Qxh3 {[%emt 0:00:05]} 54. Bb6 {[%emt 0:01:45]} Rh8 {[%emt 0:00:34]} 55. Qd5 {[%emt 0:00:21]} axb5 {[%emt 0:01:20]} 56. Qg2 {[%emt 0:01:08]} Qh4 {[%emt 0:02:34]} 57. Re2 {[%emt 0:00:37]} Rh6 {[%emt 0:02:24]} 58. f3 {[%emt 0:00:38]} Rxb6 {[%emt 0:01:45]} 59. fxg4 {[%emt 0:00:12]} Rd6 {[%emt 0:00:32]} 60. Rf2 {[%emt 0:00:52]} Rd1+ {[%emt 0:00:53]} 61. Rf1 {[%emt 0:00:01]} Rd4 {[%emt 0:00:07]} 62. Qh2 {[%emt 0:01:27]} Qxg4+ {[%emt 0:00:47]} 63. Kh1 {[%emt 0:00:08]} Qe4+ {[%emt 0:00:40]} 64. Kg1 {[%emt 0:00:17]} Qe3+ {[%emt 0:00:14]} 65. Qf2 {[%emt 0:01:02]} Qxf2+ {[%emt 0:00:21]} 66. Rxf2 {[%emt 0:00:03]} b4 {[%emt 0:00:24]} 67. Kf1 {[%emt 0:00:17]} Kg6 {[%emt 0:00:17]} 68. Ke2 {[%emt 0:00:17]} f5 {[%emt 0:00:11]} 69. Rf1 {[%emt 0:00:20]} g4 {[%emt 0:00:13]} 70. Rh1 {[%emt 0:00:12]} Kg5 {[%emt 0:00:17]} 71. Rh8 {[%emt 0:00:21]} Kf4 {[%emt 0:00:10]} 0-1

[Event "1st Cyprus Chess Tournament 2019"]
[Site "Larnaca"]
[Date "2019.10.27"]
[Round "3.10"]
[White "Kochergin, Sergey"]
[Black "Karagiannis, Kosmas"]
[Result "1-0"]
[ECO "A55"]
[WhiteElo "2224"]
[BlackElo "1879"]
[Annotator "NA"]
[PlyCount "101"]
[EventDate "2019.10.25"]
[EventType "swiss"]
[EventCountry "CYP"]
[SourceTitle "playchess.com"]
[Source "ChessBase"]
[SourceQuality "1"]
[TimeControl "5400+30"]

1. d4 {[%emt 0:00:00]} d6 {[%emt 0:00:00]} 2. c4 {[%emt 0:00:30]} Nd7 {[%emt 0:00:30]} 3. Nc3 {[%emt 0:00:30]} e5 {[%emt 0:00:30]} 4. Nf3 {[%emt 0:00:30]} Ngf6 {[%emt 0:00:30]} 5. e4 {[%emt 0:00:30]} Be7 {[%emt 0:00:30]} 6. Be2 {[%emt 0:00:30]} O-O {[%emt 0:00:30]} 7. O-O {[%emt 0:00:30]} c6 {[%emt 0:00:30]} 8. Re1 {[%emt 0:00:30]} Qc7 {[%emt 0:00:30]} 9. Bf1 {[%emt 0:00:30] A55: Old Indian Defence with Nf3 and e4} b6 {[%emt 0:00:30]} 10. Bg5 $146 {[%emt 0:00:30]} ({Predecessor:} 10. d5 Bb7 11. Be3 cxd5 12. cxd5 Rfc8 13. Nd2 Qd8 14. Rc1 Ne8 15. b4 Bg5 16. Nc4 a6 {½-½ (31) Zhou,J (2572)-Atabayev,M (2460) Kazan 2013}) 10... h6 {[%emt 0:00:30]} 11. Bh4 {[%emt 0:00:30]} Bb7 {[%emt 0:00:30]} 12. Rc1 {[%emt 0:00:30]} Rac8 {[%emt 0:00:30]} 13. a3 {[%emt 0:00:30]} a6 {[%emt 0:00:30]} 14. d5 {[%emt 0:00:30]} cxd5 {[%emt 0:00:30]} 15. cxd5 {[%emt 0:00:30]} Qb8 {[%emt 0:00:30]} 16. b4 {[%emt 0:00:30]} Rc7 {[%emt 0:00:30]} 17. Bd3 {[%emt 0:00:30]} Rfc8 {[%emt 0:00:30]} 18. Qd2 {[%emt 0:00:30]} b5 {[%emt 0:00:30]} 19. a4 {[%emt 0:00:30]} bxa4 {[%emt 0:00:30]} 20. Nxa4 {[%emt 0:00:30]} Rxc1 {[%emt 0:00:30]} 21. Rxc1 {[%emt 0:00:30]} Rxc1+ {[%emt 0:00:30]} 22. Qxc1 {[%emt 0:00:30]} g5 {[%emt 0:00:30]} 23. Bg3 {[%emt 0:00:30]} Qc8 {[%emt 0:00:30]} (23... Bxd5 $15 24. exd5 e4 {[%mdl 64] Double Attack} 25. Bxa6 Qxb4) 24. Qxc8+ {[%emt 0:00:30]} Bxc8 {[%emt 0:00:30]} 25. Nd2 {[%emt 0:00:30]} Nh5 {[%emt 0:00:30]} 26. Nc4 {[%emt 0:00:30]} Kf8 {[%emt 0:00:30]} 27. Ncb6 {[%emt 0:00:30]} Nxb6 {[%emt 0:00:30]} 28. Nxb6 {[%emt 0:00:30]} Bb7 {[%emt 0:00:30]} 29. Nd7+ {[%emt 0:00:30]} Ke8 {[%emt 0:00:30]} 30. Nb8 {[%emt 0:00:30]} Kd8 {[%emt 0:00:30]} 31. Bxa6 {[%emt 0:00:30]} Bxa6 {[%emt 0:00:30]} 32. Nxa6 {[%emt 0:00:30]} Kc8 {[%emt 0:00:30]} 33. b5 {[%emt 0:00:30]} Kb7 {[%emt 0:00:30]} 34. Nb4 {[%emt 0:00:30]} Kb6 {[%emt 0:00:30]} 35. Nc6 {[%emt 0:00:30]} Bf8 {[%emt 0:00:30]} 36. f3 {[%emt 0:00:30]} Nxg3 {[%emt 0:00:30]} 37. hxg3 {[%emt 0:00:30]} Kxb5 {[%emt 0:00:30]} 38. Kh2 {[%emt 0:00:30]} (38. g4 $16) 38... Kb6 $16 {[%emt 0:00:30]} (38... g4 $11 {keeps the balance.}) 39. Nd8 {[%emt 0:00:30]} f6 {[%emt 0:00:30]} 40. Ne6 {[%emt 0:00:30]} Be7 {[%emt 0:00:30]} 41. Kh3 {[%emt 0:00:30]} h5 {[%emt 0:00:30]} 42. Ng7 {[%emt 0:00:30]} Kc5 {[%emt 0:00:30]} 43. Nxh5 {[%emt 0:00:30]} f5 {[%emt 0:00:30]} 44. exf5 {[%emt 0:00:30]} Kxd5 {[%emt 0:00:30]} 45. f6 {[%emt 0:00:30]} Bd8 {[%emt 0:00:30]} 46. Kg4 {[%emt 0:00:30]} Ke6 {[%emt 0:00:30]} 47. Kxg5 {[%emt 0:00:30]} d5 {[%emt 0:00:30]} 48. Kg6 {[%emt 0:00:30]} d4 {[%emt 0:00:30]} 49. Ng7+ {[%emt 0:00:30]} Kd5 {[%emt 0:00:30]} 50. Nf5 {[%emt 0:00:30]} Ke6 {[%emt 0:00:30]} 51. f7 {[%emt 0:00:30]} 1-0

[Event "1st Cyprus Chess Tournament 2019"]
[Site "Larnaca"]
[Date "2019.10.27"]
[Round "3.12"]
[White "Yeshchenko, Uliana"]
[Black "Bukhteeva, Viktoria"]
[Result "1/2-1/2"]
[ECO "B24"]
[WhiteElo "1650"]
[BlackElo "2110"]
[Annotator "NA"]
[PlyCount "61"]
[EventDate "2019.10.25"]
[EventType "swiss"]
[EventCountry "CYP"]
[SourceTitle "playchess.com"]
[Source "ChessBase"]
[SourceQuality "1"]
[TimeControl "5400+30"]

1. e4 {[%emt 0:00:00]} c5 {[%emt 0:00:00]} 2. Nc3 {[%emt 0:00:00]} Nc6 {[%emt 0:00:01]} 3. g3 {[%emt 0:00:00]} e6 {[%emt 0:00:46]} 4. Bg2 {[%emt 0:00:00]} Nf6 {[%emt 0:01:36]} 5. Nge2 {[%emt 0:00:19]} d5 {[%emt 0:04:48]} 6. exd5 {[%emt 0:00:48]} exd5 {[%emt 0:00:08]} 7. d4 {[%emt 0:00:06]} Be6 {[%emt 0:08:14]} 8. O-O {[%emt 0:01:58]} Qd7 {[%emt 0:07:13]} 9. Re1 {[%emt 0:04:32]} O-O-O {[%emt 0:02:34]} 10. Bg5 $16 {[%emt 0:05:23]} cxd4 {[%emt 0:20:00]} 11. Nxd4 {[%emt 0:08:35]} Bc5 {[%emt 0:05:06]} 12. Nxe6 {[%emt 0:07:09]} fxe6 {[%emt 0:00:05]} 13. Bh3 {[%emt 0:02:50]} Rhe8 {[%emt 0:04:08]} 14. Qd3 {[%emt 0:10:52]} Kb8 {[%emt 0:01:48]} 15. Rad1 {[%emt 0:05:12]} Qf7 {[%emt 0:00:59]} 16. Rd2 {[%emt 0:06:13]} Ka8 {[%emt 0:02:40]} 17. a3 {[%emt 0:08:41]} Ne4 {[%emt 0:09:38]} 18. Nxe4 {[%emt 0:10:20]} dxe4 {[%emt 0:00:09]} 19. Qc3 {[%emt 0:01:17]} Rxd2 {[%emt 0:02:08]} 20. Qxd2 {[%emt 0:00:09]} Ne5 {[%emt 0:03:12]} 21. Bg2 {[%emt 0:00:50]} Nf3+ {[%emt 0:03:21]} 22. Bxf3 {[%emt 0:00:10]} exf3 {[%emt 0:00:34]} 23. Rd1 {[%emt 0:01:31]} Bb6 {[%emt 0:06:02]} 24. Be3 {[%emt 0:03:06]} Qf5 {[%emt 0:05:50]} 25. Bxb6 {[%emt 0:06:05]} axb6 {[%emt 0:00:04]} 26. Qd3 {[%emt 0:00:33]} Qh5 {[%emt 0:01:54]} 27. Qd4 {[%emt 0:02:12]} b5 {[%emt 0:03:54]} 28. Qb6 {[%emt 0:02:12]} Qh3 {[%emt 0:03:11]} 29. Rd8+ {[%emt 0:00:06]} Rxd8 {[%emt 0:00:04]} 30. Qxd8+ {[%emt 0:00:03]} Ka7 {[%emt 0:00:05]} 31. Qa5+ {[%emt 0:00:04]} 1/2-1/2

[Event "1st Cyprus Chess Tournament 2019"]
[Site "Larnaca"]
[Date "2019.10.27"]
[Round "4.1"]
[White "Gleizerov, Evgeny"]
[Black "Mirzoev, Azer"]
[Result "1/2-1/2"]
[ECO "D18"]
[WhiteElo "2512"]
[BlackElo "2472"]
[Annotator "ChessBase"]
[PlyCount "32"]
[EventDate "2019.10.25"]
[EventType "swiss"]
[EventCountry "CYP"]
[SourceTitle "playchess.com"]
[Source "ChessBase"]
[SourceQuality "1"]
[TimeControl "5400+30"]

1. d4 {[%emt 0:00:00]} d5 {[%emt 0:02:20]} 2. c4 {[%emt 0:00:00]} c6 {[%emt 0:00:16]} 3. Nf3 {[%emt 0:00:00]} Nf6 {[%emt 0:00:35]} 4. Nc3 {[%emt 0:00:00]} dxc4 {[%emt 0:01:22]} 5. a4 {[%emt 0:00:00]} Bf5 {[%emt 0:00:23]} 6. e3 {[%emt 0:00:00]} e6 {[%emt 0:00:46]} 7. Bxc4 {[%emt 0:00:00]} Nbd7 {[%emt 0:01:20]} 8. O-O {[%emt 0:00:06]} Bb4 {[%emt 0:01:14]} 9. Qb3 {[%emt 0:00:06]} a5 {[%emt 0:01:59]} 10. Na2 {[%emt 0:00:19]} Be7 {[%emt 0:01:16]} 11. Qxb7 {[%emt 0:00:25]} Rb8 {[%emt 0:00:23]} 12. Qa6 {[%emt 0:00:05]} Ra8 {[%emt 0:00:18]} 13. Qb7 {[%emt 0:00:05]} Rb8 {[%emt 0:00:07]} 14. Qa6 {[%emt 0:00:04]} Ra8 {[%emt 0:00:09]} 15. Qb7 {[%emt 0:00:03]} Rb8 {[%emt 0:00:27]} 16. Qa6 {[%emt 0:00:04]} Ra8 {[%emt 0:01:21]} 1/2-1/2

[Event "1st Cyprus Chess Tournament 2019"]
[Site "Larnaca"]
[Date "2019.10.27"]
[Round "4.2"]
[White "Arkell, Keith C"]
[Black "Kotronias, Vasilios"]
[Result "1/2-1/2"]
[ECO "D02"]
[WhiteElo "2447"]
[BlackElo "2486"]
[Annotator "ChessBase"]
[PlyCount "62"]
[EventDate "2019.10.25"]
[EventType "swiss"]
[EventCountry "CYP"]
[SourceTitle "playchess.com"]
[Source "ChessBase"]
[SourceQuality "1"]
[TimeControl "5400+30"]

1. d4 {[%emt 0:00:00]} d5 {[%emt 0:01:19]} 2. Nf3 {[%emt 0:00:00]} c5 {[%emt 0:00:10]} 3. c3 {[%emt 0:00:48]} Nf6 {[%emt 0:00:13]} 4. Bf4 {[%emt 0:00:05]} Qb6 {[%emt 0:01:04]} 5. Qb3 {[%emt 0:00:41]} Nc6 {[%emt 0:00:37]} 6. e3 {[%emt 0:01:27]} c4 {[%emt 0:00:12]} 7. Qc2 {[%emt 0:00:06]} Bf5 {[%emt 0:00:16]} 8. Qc1 {[%emt 0:00:04]} e6 {[%emt 0:00:16]} 9. h3 {[%emt 0:00:51]} Be7 {[%emt 0:04:33]} 10. Nbd2 {[%emt 0:00:27]} Rc8 {[%emt 0:00:46]} 11. Be2 {[%emt 0:01:30]} O-O {[%emt 0:00:21]} 12. O-O {[%emt 0:00:05]} h6 {[%emt 0:06:45]} 13. Re1 {[%emt 0:02:07]} Rfd8 {[%emt 0:00:10]} 14. Ne5 {[%emt 0:00:22]} Nxe5 {[%emt 0:06:42]} 15. Bxe5 {[%emt 0:00:05]} Qc6 {[%emt 0:00:48]} 16. a4 {[%emt 0:03:59]} b6 {[%emt 0:08:43]} 17. Bf3 {[%emt 0:05:10]} Ne4 {[%emt 0:01:27]} 18. Nxe4 {[%emt 0:00:25]} Bxe4 {[%emt 0:00:13]} 19. Bxe4 {[%emt 0:00:05]} dxe4 {[%emt 0:00:04]} 20. Qc2 {[%emt 0:00:48]} a6 {[%emt 0:03:34]} 21. Rf1 {[%emt 0:01:23]} f6 {[%emt 0:03:34]} 22. Bg3 {[%emt 0:00:13]} e5 {[%emt 0:02:49]} 23. f3 {[%emt 0:02:49]} exf3 {[%emt 0:03:08]} 24. Rxf3 {[%emt 0:00:10]} e4 {[%emt 0:00:57]} 25. Rf2 {[%emt 0:01:45]} Qe6 {[%emt 0:00:18]} 26. Raf1 {[%emt 0:04:30]} Rd5 {[%emt 0:00:18]} 27. b4 {[%emt 0:02:20]} h5 {[%emt 0:09:15]} 28. Qe2 {[%emt 0:07:09]} Qd7 {[%emt 0:08:07]} 29. Qc2 {[%emt 0:06:11]} Qe6 {[%emt 0:00:11]} 30. Qe2 {[%emt 0:00:51]} Qd7 {[%emt 0:00:11]} 31. Qc2 {[%emt 0:00:21]} Qe6 {[%emt 0:02:48]} 1/2-1/2